[Event "Charlotte Spring IM-C 2024"]
[Site "Charlotte"]
[Date "2024.03.30"]
[Round "5.4"]
[White "Posthuma, Joshua"]
[Black "Horobetz, Graham"]
[Result "1-0"]
[ECO "D00"]
[WhiteElo "2449"]
[BlackElo "2252"]
[Annotator "TA"]
[PlyCount "65"]
[EventDate "2024.03.27"]
[EventType "tourn"]
[EventCountry "USA"]
[SourceTitle "playchess.com"]
[Source "ChessBase"]
[SourceQuality "1"]
[TimeControl "5400+30"]

{[%evp 9,65,4,6,0,0,-4,0,-7,7,8,38,33,59,43,83,50,57,47,47,47,52,50,52,50,103,70,162,168,174,151,177,57,59,43,51,51,43,53,40,21,121,110,174,171,220,220,192,193,225,156,164,160,362,353,747,746,739,713]} 1. d4 {[%emt 0:00:06]} Nf6 {[%emt 0:00:07]} 2. Bf4 {[%emt 0:00:13]} d5 {[%emt 0:00:13]} 3. e3 {[%emt 0:00:00]} c5 {[%emt 0:00:30]} 4. dxc5 {[%emt 1:32:11]} Nc6 {[%emt 0:10:23]} 5. Bb5 {[%emt 0:00:30]} e6 {[%emt 0:07:40]} 6. b4 {[%emt 0:00:00] Prevents Qa5} Bd7 {[%emt 0:10:26]} 7. c3 {[%emt 0:00:00]} a5 {[%emt 0:02:29]} 8. Qb3 {[%emt 0:00:00] The position is equal.} Nh5 {[%emt 0:16:16]} (8... Ne4 $5 9. f3 Nf6 $11) 9. Ne2 {[%emt 0:00:00][%cal Bg1e2,Be2f4,Bf4d3][%mdl 32]} Nxf4 {[%emt 0:01:33]} 10. Nxf4 {[%emt 0:00:00]} Qf6 {[%emt 0:01:32]} 11. O-O $1 {[%emt 0:00:00]} h5 {[%emt 0:12:26]} (11... axb4 12. cxb4 Be7 (12... Qxa1 13. Nc3 $18) 13. Nd2 $16) 12. Nd2 {[%emt 0:00:00]} g5 {[%emt 0:00:59]} 13. Nd3 {[%emt 0:00:00]} Bg7 {[%emt 0:02:04]} 14. Rac1 {[%emt 0:00:00]} O-O {[%emt 0:02:44]} 15. a4 {[%emt 0:00:00]} Qg6 {[%emt 0:04:52]} 16. Nf3 {[%emt 0:00:00]} Be8 {[%emt 0:07:21]} (16... Qf5 $14) 17. Rfd1 {[%emt 0:06:00] White is more active.} Rd8 {[%emt 0:02:24]} (17... g4 $14 18. Nd4 e5 (18... axb4 19. Bxc6 bxc6 20. cxb4 $18)) 18. Bxc6 $1 $18 {[%emt 0:00:00]} bxc6 {[%emt 0:00:28]} 19. b5 {[%emt 0:00:00]} g4 {[%emt 0:03:37]} 20. Nfe5 {[%emt 0:00:00]} ({White should play} 20. Nf4 $18 Qh7 21. Nd4) 20... Qe4 $14 {[%emt 0:00:26]} 21. Nxc6 {[%emt 0:00:00]} Bxc6 {[%emt 0:00:05]} 22. bxc6 {[%emt 0:00:00]} Rb8 {[%emt 0:00:26]} 23. Qc2 {[%emt 0:00:00]} Rfc8 {[%emt 0:00:52]} 24. c4 {[%emt 0:00:00] Hoping for cxd5.} dxc4 {[%emt 0:03:26]} (24... d4 $1 $11) 25. Qxc4 $16 {[%emt 0:00:00]} Qxc6 {[%emt 0:03:10] [#]} (25... Qxc4 $16 {was called for.} 26. Rxc4 Rxc6) 26. Rb1 $1 $18 {[%emt 0:00:00]} Rd8 {[%emt 0:01:28] [#]} (26... Rb7 $142 27. Rxb7 Qxb7) 27. Rb5 $1 {[%emt 0:00:00][%cal Bb1b5,Bb5a5,Ba5a8][%mdl 32]} Rbc8 {[%emt 0:01:33]} 28. Rxa5 {[%emt 0:00:00]} Rd5 {[%emt 0:00:55]} 29. Rf1 {[%emt 0:00:00] Threatens to win with Nb4.} Bf8 {[%emt 0:02:32][%cal Oc6c7]} 30. g3 {[%emt 0:00:00]} Bxc5 $2 {[%emt 0:01:20]} (30... Qc7 $16 31. Rb5 Qd8) 31. Rc1 {[%emt 0:00:00]} Ba3 {[%emt 0:00:07]} (31... Ba7 32. Qxc6 Rxc6 33. Rxd5 (33. Rxa7 Rxc1+ 34. Nxc1 Rd1+ 35. Kg2 Rxc1 $14) 33... Rxc1+ 34. Nxc1 exd5) 32. Qxc6 {[%emt 0:00:00]} Rxc6 {[%emt 0:00:06]} 33. Ra8+ {[%emt 0:00:00] Weighted Error Value: White=0.13 (very precise) /Black=0.33.  Loses game:     	---       	Black=1      Mistake:       	White=1     	Black=6      Inaccurate:     	White=2     	Black=3      OK:         	White=13    	Black=8      Best:        	White=1     	Black=1      Strong:       	White=1     	---} ({Less strong is} 33. Rxc6 Rxa5 34. Rc4 Kf8 $16) 1-0

[Event "Charlotte Spring IM-C 2024"]
[Site "Charlotte"]
[Date "2024.03.30"]
[Round "5.5"]
[White "Fierro Baquero, Martha L."]
[Black "Mendez Tovar, Yessica Yissel"]
[Result "1-0"]
[ECO "C90"]
[WhiteElo "2283"]
[BlackElo "1993"]
[Annotator "RC"]
[PlyCount "63"]
[EventDate "2024.03.27"]
[EventType "tourn"]
[EventCountry "USA"]
[SourceTitle "playchess.com"]
[Source "ChessBase"]
[SourceQuality "1"]
[TimeControl "5400+30"]

1. e4 {[%emt 0:00:09]} e5 {[%emt 0:00:11]} 2. Nf3 {[%emt 0:00:04]} Nc6 {[%emt 0:00:05]} 3. Bb5 {[%emt 0:00:03]} a6 {[%emt 0:00:43]} 4. Ba4 {[%emt 0:00:22]} d6 5. c3 {[%emt 0:00:30]} b5 {[%emt 0:05:02]} 6. Bb3 {[%emt 0:00:24]} Be7 {[%emt 0:02:38]} 7. O-O {[%emt 0:04:44]} Nf6 {[%emt 0:01:08]} 8. Re1 {[%emt 0:01:43]} O-O {[%emt 0:03:47]} 9. d3 {[%emt 0:01:08]} Bb7 {[%emt 0:06:20]} 10. Nbd2 {[%emt 0:02:21]} Na5 {[%emt 0:02:10]} 11. Bc2 {[%emt 0:00:33]} c5 {[%emt 0:00:12]} 12. Nf1 {[%emt 0:01:16]} Qc7 {[%emt 0:07:05]} 13. Bg5 {[%emt 0:03:16]} Ne8 {[%emt 0:10:51]} 14. Bd2 {[%emt 0:06:00]} Rd8 {[%emt 0:12:51]} 15. Ne3 {[%emt 0:03:26]} Bf6 {[%emt 0:10:49]} 16. b4 {[%emt 0:03:11]} Nc6 {[%emt 0:07:27]} 17. a4 {[%emt 0:05:56]} Ne7 {[%emt 0:01:57]} 18. axb5 {[%emt 0:01:41]} axb5 {[%emt 0:00:06]} 19. Ra5 {[%emt 0:17:57]} Bc6 {[%emt 0:02:40]} 20. Bb3 {[%emt 0:05:54]} Ra8 {[%emt 0:05:06]} 21. Rxa8 {[%emt 0:06:32]} Bxa8 {[%emt 0:00:02]} 22. h3 {[%emt 0:05:23]} Qd8 {[%emt 0:08:08]} 23. c4 {[%emt 0:04:56]} Nc7 {[%emt 0:02:34]} 24. Ng4 {[%emt 0:05:41]} Nc6 {[%emt 0:02:12]} 25. cxb5 {[%emt 0:09:16]} Nxb5 {[%emt 0:00:22]} 26. Bc4 {[%emt 0:01:25]} Nbd4 {[%emt 0:03:36]} 27. b5 {[%emt 0:00:47]} Nxf3+ {[%emt 0:00:47]} 28. Qxf3 {[%emt 0:00:06]} Nd4 {[%emt 0:00:05]} 29. Nxf6+ {[%emt 0:00:30]} Kh8 {[%emt 0:06:06]} 30. Qh5 {[%emt 0:01:24]} Qxf6 {[%emt 0:00:00]} 31. Bg5 {[%emt 0:00:30]} Qg6 {[%emt 0:00:00]} 32. Qxg6 {[%emt 0:00:30]} 1-0

[Event "Charlotte Spring IM-C 2024"]
[Site "Charlotte"]
[Date "2024.03.30"]
[Round "6.1"]
[White "Eckert, Doug"]
[Black "Mendez Tovar, Yessica Yissel"]
[Result "1/2-1/2"]
[ECO "A37"]
[WhiteElo "2146"]
[BlackElo "1993"]
[Annotator "NA RC"]
[PlyCount "46"]
[EventDate "2024.03.27"]
[EventType "tourn"]
[EventCountry "USA"]
[SourceTitle "playchess.com"]
[Source "ChessBase"]
[SourceQuality "1"]
[TimeControl "5400+30"]

1. c4 {[%emt 0:03:06]} g6 {[%emt 0:02:18]} 2. g3 {[%emt 0:00:31]} Bg7 {[%emt 0:00:14]} 3. Bg2 {[%emt 0:00:06]} c5 {[%emt 0:02:07]} 4. Nf3 {[%emt 0:00:40]} Nc6 {[%emt 0:00:24]} 5. Nc3 {[%emt 0:00:12]} e5 {[%emt 0:01:41]} 6. O-O {[%emt 0:00:09]} Nge7 {[%emt 0:00:09]} 7. a3 {[%emt 0:00:08]} O-O {[%emt 0:00:38]} 8. Ne1 {[%emt 0:01:19]} d6 {[%emt 0:02:07]} 9. Nc2 {[%emt 0:00:06]} Be6 {[%emt 0:00:40]} 10. Ne3 {[%emt 0:00:06]} Rb8 {[%emt 0:04:27]} 11. Ned5 {[%emt 0:03:26]} a6 {[%emt 0:04:28]} 12. a4 {[%emt 0:08:50]} b6 {[%emt 0:23:17]} 13. d3 {[%emt 0:00:22]} Qd7 {[%emt 0:00:20]} 14. Rb1 {[%emt 0:03:20]} Bh3 {[%emt 0:13:05]} 15. Bh6 {[%emt 0:05:12]} Bxg2 {[%emt 0:01:24]} 16. Kxg2 {[%emt 0:00:25]} f5 {[%emt 0:05:23]} 17. Bxg7 {[%emt 0:00:06]} Kxg7 {[%emt 0:00:02]} 18. e3 {[%emt 0:01:16]} Nxd5 {[%emt 0:03:51]} 19. Nxd5 {[%emt 0:00:07]} b5 {[%emt 0:00:16]} 20. axb5 {[%emt 0:01:23]} axb5 {[%emt 0:01:59]} 21. b3 {[%emt 0:00:11]} bxc4 {[%emt 0:03:03]} 22. bxc4 {[%emt 0:00:06]} Rxb1 {[%emt 0:00:33]} 23. Qxb1 {[%emt 0:00:05]} Rb8 {[%emt 0:00:05]} 1/2-1/2

[Event "Charlotte Spring IM-C 2024"]
[Site "Charlotte"]
[Date "2024.03.30"]
[Round "6.2"]
[White "Horobetz, Graham"]
[Black "Fierro Baquero, Martha L."]
[Result "1/2-1/2"]
[ECO "B27"]
[WhiteElo "2252"]
[BlackElo "2283"]
[Annotator "RC"]
[PlyCount "88"]
[EventDate "2024.03.27"]
[EventType "tourn"]
[EventCountry "USA"]
[SourceTitle "playchess.com"]
[Source "ChessBase"]
[SourceQuality "1"]
[TimeControl "5400+30"]

1. e4 {[%emt 0:03:07]} c5 {[%emt 0:05:41]} 2. Nf3 {[%emt 0:00:12]} g6 {[%emt 0:00:04]} 3. d4 {[%emt 0:00:15]} Bg7 {[%emt 0:00:35]} 4. dxc5 {[%emt 0:01:46]} Qa5+ {[%emt 0:00:06]} 5. c3 {[%emt 0:04:16]} Qxc5 {[%emt 0:00:06]} 6. Be3 {[%emt 0:00:27]} Qc7 {[%emt 0:01:12]} 7. Bd4 {[%emt 0:02:55]} Nf6 {[%emt 1:26:16]} 8. e5 {[%emt 0:01:20]} Ng4 {[%emt 0:00:30]} 9. e6 {[%emt 0:00:51]} f6 {[%emt 0:00:00]} 10. Na3 {[%emt 0:28:41]} Nc6 {[%emt 0:00:00]} 11. Bc4 {[%emt 0:04:46]} dxe6 {[%emt 0:00:00]} 12. h3 {[%emt 0:11:52]} Nge5 {[%emt 0:00:00]} 13. Nxe5 {[%emt 0:02:27]} Nxe5 {[%emt 0:00:00]} 14. Bb3 {[%emt 0:01:11]} O-O {[%emt 0:00:00]} 15. Qe2 {[%emt 0:00:38]} Qc6 {[%emt 0:00:00]} 16. f4 {[%emt 0:01:30]} Nf7 {[%emt 0:00:00]} 17. h4 {[%emt 0:01:58]} Qd6 {[%emt 0:00:00]} 18. g3 {[%emt 0:03:48]} e5 {[%emt 0:00:00]} 19. fxe5 {[%emt 0:01:56]} fxe5 {[%emt 0:00:00]} 20. Be3 {[%emt 0:01:09]} h5 {[%emt 0:00:00]} 21. Rf1 {[%emt 0:06:20]} e4 {[%emt 0:00:00]} 22. Bf4 {[%emt 0:04:33]} Qd3 {[%emt 0:00:00]} 23. Nb5 {[%emt 0:07:48]} Bh3 {[%emt 0:00:00]} 24. Rf2 {[%emt 0:01:27]} Kh7 {[%emt 0:02:00]} 25. Bc2 {[%emt 0:01:55]} Qxe2+ {[%emt 0:01:53]} 26. Kxe2 {[%emt 0:06:22]} e5 {[%emt 0:01:31]} 27. Be3 {[%emt 0:00:00]} a6 28. Nc7 {[%emt 0:00:00]} Bg4+ 29. Ke1 {[%emt 0:01:30]} Rac8 {[%emt 0:01:40]} 30. Nd5 {[%emt 0:00:00]} Nd6 {[%emt 0:00:40]} 31. Rxf8 {[%emt 0:00:00]} Rxf8 {[%emt 0:01:21]} 32. Bc5 {[%emt 0:00:00]} Rd8 {[%emt 0:00:55]} 33. Bxd6 {[%emt 0:00:00]} Bf3 {[%emt 0:01:13]} 34. Bc5 {[%emt 0:01:45]} Rxd5 {[%emt 0:00:05]} 35. Be3 {[%emt 0:00:05]} Bh6 {[%emt 0:00:19]} 36. Kf2 {[%emt 0:00:22]} Bf8 {[%emt 0:01:29]} 37. c4 {[%emt 0:00:34]} Rd8 {[%emt 0:00:13]} 38. c5 {[%emt 0:00:47]} Bxc5 {[%emt 0:00:45]} 39. Bxe4 {[%emt 0:00:40]} Bxe4 {[%emt 0:00:49]} 40. Bxc5 {[%emt 0:00:05]} Bc6 {[%emt 0:00:14]} 41. Re1 {[%emt 0:00:26]} e4 {[%emt 0:00:23]} 42. Ke2 {[%emt 0:01:46]} Bd7 {[%emt 0:00:33]} 43. Ke3 {[%emt 0:00:00]} Bg4 {[%emt 0:00:31]} 44. Bd4 {[%emt 0:00:00]} Bf5 {[%emt 0:00:42]} 1/2-1/2

[Event "Charlotte Spring IM-C 2024"]
[Site "Charlotte"]
[Date "2024.03.30"]
[Round "6.3"]
[White "Kunka, Harshid"]
[Black "Posthuma, Joshua"]
[Result "1/2-1/2"]
[ECO "B28"]
[WhiteElo "2294"]
[BlackElo "2449"]
[Annotator "TA"]
[PlyCount "64"]
[EventDate "2024.03.27"]
[EventType "tourn"]
[EventCountry "USA"]
[SourceTitle "playchess.com"]
[Source "ChessBase"]
[SourceQuality "1"]
[TimeControl "5400+30"]

{[%evp 10,64,20,22,20,0,0,0,0,0,0,0,-5,-14,22,0,23,-8,-20,-22,-17,-14,-16,-10,-21,-12,-20,-11,0,0,0,0,11,11,9,20,90,85,75,91,95,35,40,17,32,42,0,0,13,18,16,11,45,45,49,41,31]} 1. e4 {[%emt 0:00:03]} c5 {[%emt 0:07:34]} 2. Nf3 {[%emt 0:00:08]} a6 {[%emt 0:00:10]} 3. c3 {[%emt 0:00:57]} e6 {[%emt 0:00:33]} 4. d4 {[%emt 0:00:58]} d5 {[%emt 0:00:28]} 5. e5 {[%emt 0:00:34]} Bd7 {[%emt 0:00:46]} 6. Bd3 {[%emt 0:04:36]} Nc6 {[%emt 0:02:36]} 7. O-O {[%emt 0:01:26]} cxd4 {[%emt 0:00:50]} 8. cxd4 {[%emt 0:00:28]} Qb6 {[%emt 0:00:26] The position is equal.} 9. Be2 {[%emt 0:10:59]} Nge7 {[%emt 0:02:07]} 10. Na3 {[%emt 0:00:37]} Nf5 {[%emt 0:01:00]} 11. Nc2 {[%emt 0:00:06]} Be7 {[%emt 0:02:15]} 12. Rb1 {[%emt 0:05:36]} Rc8 {[%emt 0:11:17]} 13. b3 {[%emt 0:05:39]} Nb4 {[%emt 0:11:20]} 14. Nxb4 {[%emt 0:03:32]} Bxb4 {[%emt 0:00:36]} 15. g4 {[%emt 0:01:35]} Ne7 {[%emt 0:05:17]} 16. a3 {[%emt 0:01:14][%cal Ba2a3,Ba3a4][%mdl 32]} Bc3 {[%emt 0:00:17]} 17. Be3 {[%emt 0:02:30]} h5 {[%emt 0:07:41]} 18. h3 {[%emt 0:00:05]} Qa5 {[%emt 0:02:33]} 19. a4 {[%emt 0:09:44]} b5 {[%emt 0:02:12]} 20. b4 {[%emt 0:08:23]} Bxb4 {[%emt 0:09:25] [#] ...hxg4 would now be deadly.} 21. Qb3 {[%emt 0:02:10] axb5 is the strong threat.} hxg4 {[%emt 0:01:20]} (21... bxa4 $2 22. Qxb4 Qxb4 23. Rxb4 $18) 22. hxg4 {[%emt 0:00:07] And now axb5 would win.} Nc6 {[%emt 0:05:44]} (22... bxa4 $2 {loses.} 23. Qxb4 Qxb4 24. Rxb4 $18) (22... Bc3 $1 $11) 23. axb5 $16 {[%emt 0:02:27]} axb5 {[%emt 0:00:05]} 24. Ra1 {[%emt 0:03:50]} Qb6 {[%emt 0:04:46]} 25. Rfc1 {[%emt 0:00:49]} (25. Kg2 $16) 25... Be7 $1 $14 {[%emt 0:00:35]} 26. Qxb5 {[%emt 0:00:52]} Qxb5 {[%emt 0:00:58]} 27. Bxb5 {[%emt 0:00:07] [#] aiming for Ra6.} O-O {[%emt 0:00:52][%cal Oc6e5]} 28. Be2 {[%emt 0:03:22]} f6 {[%emt 0:01:21]} 29. exf6 {[%emt 0:02:59]} gxf6 {[%emt 0:00:09]} 30. Bb5 {[%emt 0:00:58]} Kf7 {[%emt 0:02:01]} (30... Ne5 $5 31. Rxc8 Nxf3+ 32. Kg2 Bxc8 33. Kxf3 e5 $11) 31. g5 {[%emt 0:01:33]} Nb8 {[%emt 0:02:44]} 32. Rxc8 {[%emt 0:01:47]} Rxc8 {[%emt 0:00:26] Weighted Error Value: White=0.07 (flawless) /Black=0.10 (very precise) .  Mistake:       	White=1     	Black=1      Inaccurate:     	White=1     	Black=2      OK:         	White=10    	Black=10     Best:        	White=3     	---        Strong:       	---       	Black=1} 1/2-1/2

[Event "Charlotte Spring IM-C 2024"]
[Site "Charlotte"]
[Date "2024.03.30"]
[Round "6.4"]
[White "Nguyen, James Le"]
[Black "Komarov, Dimitri"]
[Result "0-1"]
[ECO "C07"]
[WhiteElo "2114"]
[BlackElo "2448"]
[Annotator "TA"]
[PlyCount "62"]
[EventDate "2024.03.27"]
[EventType "tourn"]
[EventCountry "USA"]
[SourceTitle "playchess.com"]
[Source "ChessBase"]
[SourceQuality "1"]
[TimeControl "5400+30"]

{[%evp 10,62,25,16,21,16,12,10,18,12,12,0,0,0,5,0,3,0,0,0,0,0,0,0,0,0,0,0,0,-43,-35,-144,-150,-194,-194,-228,-223,-328,-337,-375,-295,-289,-281,-357,-326,-331,-327,-350,-339,-470,-470,-404,-390,-539,-535]} 1. e4 {[%emt 0:02:15]} e6 {[%emt 0:00:05]} 2. d4 {[%emt 0:00:04]} d5 {[%emt 0:00:02]} 3. Nd2 {[%emt 0:01:02]} c5 {[%emt 0:00:09]} 4. exd5 {[%emt 0:00:10]} Qxd5 {[%emt 0:00:07]} 5. Ngf3 {[%emt 0:00:07]} cxd4 {[%emt 0:00:19]} 6. Bc4 {[%emt 0:00:06]} Qd7 {[%emt 0:00:15]} 7. O-O {[%emt 0:00:38][%mdl 1024] White has compensation.} Nc6 {[%emt 0:00:56]} 8. Nb3 {[%emt 0:00:32][%cal Rb3d4]} a6 {[%emt 0:00:43] The position is equal.} 9. a4 {[%emt 0:00:30]} Nf6 {[%emt 0:05:18]} 10. Qe2 {[%emt 0:00:48]} Bd6 {[%emt 0:00:10]} 11. Rd1 {[%emt 0:00:21][%cal Oc1g5]} Qe7 {[%emt 0:01:15]} 12. Nbxd4 {[%emt 0:02:18]} Nxd4 {[%emt 0:00:13]} 13. Rxd4 {[%emt 0:00:30]} e5 {[%emt 0:15:37]} 14. Rxd6 {[%emt 0:03:35]} Qxd6 {[%emt 0:00:05]} 15. b3 {[%emt 0:01:30][%cal Oc1a3] [#] And now Ba3! would win.} e4 {[%emt 0:00:03] ...Be6 is the strong threat.} 16. Ba3 {[%emt 0:02:13]} Qf4 {[%emt 0:00:06]} 17. Qe1 {[%emt 0:10:44][%cal Oe1a5] Threatens to win with Qa5!} Be6 {[%emt 0:12:32] ...Bxc4 would now be deadly.} 18. Qa5 $1 {[%emt 0:22:40][%cal Oa5c5] Hoping for Qc5!} Rd8 $1 {[%emt 0:43:02]} (18... exf3 $2 19. Qc5 Kd8 20. Bxe6 fxe6 21. Qe7+ (21. Rd1+ Nd5 $11) 21... Kc8 22. Bd6 $18 (22. Qxg7 $2 Rg8 $19) (22. Qxg7 $2 Rg8 $19)) 19. Ne5 {[%emt 0:19:30]} Nd7 {[%emt 0:02:39] Wards off Qc5} 20. Nxd7 {[%emt 0:08:02]} ({Only move:} 20. Bxe6 $1 $15 Nxe5 (20... Qxe5 $2 {perishes.} 21. Bxd7+ Kxd7 22. Qxe5 $18) 21. Bh3) 20... Rxd7 $17 {[%emt 0:00:29]} 21. Re1 {[%emt 0:04:36]} Bxc4 {[%emt 0:02:59]} 22. bxc4 {[%emt 0:00:36]} f6 {[%emt 0:00:34]} 23. Qc5 {[%emt 0:04:46]} (23. Bc1 $142 Qc7 24. Qf5) 23... Kf7 $19 {[%emt 0:00:47]} 24. Bb4 {[%emt 0:01:09]} Qe5 {[%emt 0:01:18]} 25. Qxe5 {[%emt 0:02:02]} fxe5 {[%emt 0:00:06]} 26. Rxe4 {[%emt 0:00:55][%mdl 4096] Endgame. KRR-KRB} Rd1+ {[%emt 0:00:15]} 27. Be1 {[%emt 0:00:02]} Rd4 {[%emt 0:00:47]} 28. Re3 {[%emt 0:01:35]} Rc8 {[%emt 0:04:28]} ({But not} 28... Rxc4 29. Bc3) 29. Bc3 {[%emt 0:00:40]} Rd1+ {[%emt 0:00:15]} ({Not} 29... Rdxc4 30. Bxe5 Rd8 (30... Rxa4 31. Rf3+ Ke6 32. Bxg7 $19) (30... Rxc2 $2 31. h4 $19) 31. h3 $19) 30. Be1 {[%emt 0:00:04]} Rxc4 {[%emt 0:00:44]} 31. Rxe5 {[%emt 0:00:21]} Rxa4 {[%emt 0:00:40] Weighted Error Value: White=0.34/Black=0.07 (flawless) .  Mistake:       	White=2     	---        Inaccurate:     	White=3     	---        OK:         	White=5     	Black=12     Best:        	White=2     	Black=3      Strong:       	White=1     	Black=1} 0-1

[Event "Charlotte Spring IM-C 2024"]
[Site "Charlotte"]
[Date "2024.03.30"]
[Round "6.5"]
[White "Wu, Sibo"]
[Black "Melillo, Lucius"]
[Result "1-0"]
[ECO "D31"]
[WhiteElo "2142"]
[BlackElo "2274"]
[Annotator "RC"]
[PlyCount "77"]
[EventDate "2024.03.27"]
[EventType "tourn"]
[EventCountry "USA"]
[SourceTitle "playchess.com"]
[Source "ChessBase"]
[SourceQuality "1"]
[TimeControl "5400+30"]

1. d4 {[%emt 0:00:04]} d5 {[%emt 0:00:27]} 2. c4 {[%emt 0:00:13]} e6 {[%emt 0:00:21]} 3. Nc3 {[%emt 0:00:11]} c6 {[%emt 0:00:51]} 4. Nf3 {[%emt 0:00:08]} dxc4 {[%emt 0:01:26]} 5. e4 {[%emt 0:23:13]} b5 {[%emt 0:00:40]} 6. e5 {[%emt 0:04:23]} Bb7 {[%emt 0:02:45]} 7. Ng5 {[%emt 0:02:15]} Be7 {[%emt 0:17:04]} 8. Nge4 {[%emt 0:13:45]} c5 {[%emt 0:35:21]} 9. Qg4 {[%emt 0:10:55]} cxd4 {[%emt 0:07:19]} 10. Qxg7 {[%emt 0:02:07]} dxc3 {[%emt 0:00:03]} 11. Nxc3 {[%emt 0:11:58]} Bf6 {[%emt 0:00:54]} 12. exf6 {[%emt 0:00:10]} Qxf6 {[%emt 0:00:02]} 13. Qxf6 {[%emt 0:00:15]} Nxf6 {[%emt 0:00:05]} 14. Nxb5 {[%emt 0:00:11]} Kd7 {[%emt 0:00:26]} 15. Bf4 {[%emt 0:07:35]} Nd5 {[%emt 0:30:16]} 16. Bg3 {[%emt 0:00:49]} f5 {[%emt 0:00:00]} 17. Rd1 {[%emt 0:01:35]} Na6 {[%emt 0:00:00]} 18. Bxc4 {[%emt 0:01:06]} Rhc8 {[%emt 0:00:00]} 19. b3 {[%emt 0:04:06]} Nab4 {[%emt 0:00:00]} 20. Rd2 {[%emt 0:05:38]} Ba6 {[%emt 0:00:00]} 21. O-O {[%emt 0:01:51]} Rc5 {[%emt 0:00:00]} 22. a4 {[%emt 0:01:11]} Bb7 {[%emt 0:00:00]} 23. f3 {[%emt 0:02:00]} a6 {[%emt 0:00:00]} 24. Nd4 {[%emt 0:00:45]} Rg8 {[%emt 0:00:00]} 25. Re1 {[%emt 0:00:19]} Rg6 {[%emt 0:00:00]} 26. Rde2 {[%emt 0:00:52]} f4 {[%emt 0:00:36]} 27. Bf2 {[%emt 0:00:10]} Ne3 {[%emt 0:00:46]} 28. Bxe3 {[%emt 0:00:42]} fxe3 {[%emt 0:00:04]} 29. Rxe3 {[%emt 0:00:09]} Bd5 {[%emt 0:02:04]} 30. Nxe6 {[%emt 0:01:51]} Bxe6 {[%emt 0:00:38]} 31. Rxe6 {[%emt 0:01:12]} Rxe6 {[%emt 0:00:18]} 32. Bxe6+ {[%emt 0:00:06]} Kd6 {[%emt 0:00:04]} 33. Bc4 {[%emt 0:00:12]} a5 {[%emt 0:00:01]} 34. Re6+ {[%emt 0:00:11]} Kd7 {[%emt 0:00:22]} 35. Rh6 {[%emt 0:00:09]} Nc2 {[%emt 0:00:04]} 36. Rxh7+ {[%emt 0:00:10]} Kd6 {[%emt 0:00:08]} 37. Rh6+ {[%emt 0:00:14]} Ke7 {[%emt 0:00:14]} 38. Kf2 {[%emt 0:00:07]} Na3 {[%emt 0:00:13]} 39. Ra6 {[%emt 0:00:35]} 1-0

[Event "Charlotte Spring IM-C 2024"]
[Site "Charlotte"]
[Date "2024.03.31"]
[Round "7.1"]
[White "Melillo, Lucius"]
[Black "Eckert, Doug"]
[Result "1/2-1/2"]
[ECO "D02"]
[WhiteElo "2274"]
[BlackElo "2146"]
[Annotator "RC"]
[PlyCount "80"]
[EventDate "2024.03.27"]
[EventType "tourn"]
[EventCountry "USA"]
[SourceTitle "playchess.com"]
[Source "ChessBase"]
[SourceQuality "1"]
[TimeControl "5400+30"]

1. Nf3 {[%emt 0:11:14]} d5 {[%emt 0:00:08]} 2. d4 {[%emt 0:03:48]} Nf6 {[%emt 0:00:08]} 3. Bf4 {[%emt 0:02:36]} e6 {[%emt 0:00:06]} 4. e3 {[%emt 0:00:06]} Bd6 {[%emt 0:00:13]} 5. Nbd2 {[%emt 0:00:16]} O-O {[%emt 0:00:18]} 6. Bd3 {[%emt 0:00:30]} c5 {[%emt 0:00:35]} 7. dxc5 {[%emt 0:00:03]} Bxf4 {[%emt 0:00:18]} 8. exf4 {[%emt 0:00:06]} Qc7 {[%emt 0:00:05]} 9. g3 {[%emt 0:00:28]} a5 {[%emt 0:00:06]} 10. O-O {[%emt 0:01:00]} Nbd7 {[%emt 0:00:03]} 11. Nb3 {[%emt 0:02:43]} a4 {[%emt 0:01:14]} 12. Nbd4 {[%emt 0:00:05]} Nxc5 {[%emt 0:00:07]} 13. Re1 {[%emt 0:01:28]} Nfe4 {[%emt 0:02:47]} 14. b4 {[%emt 0:15:24]} axb3 {[%emt 0:02:10]} 15. axb3 {[%emt 0:01:46]} Rxa1 {[%emt 0:01:10]} 16. Qxa1 {[%emt 0:00:06]} Qb6 {[%emt 0:12:58]} 17. Bb5 {[%emt 0:05:10]} Bd7 {[%emt 0:15:33]} 18. Bxd7 {[%emt 0:00:47]} Nxd7 {[%emt 0:00:04]} 19. Qa4 {[%emt 0:03:11]} Ndf6 {[%emt 0:03:30]} 20. h3 {[%emt 0:03:55]} Rc8 {[%emt 0:01:30]} 21. Ra1 {[%emt 0:01:13]} h6 {[%emt 0:02:25]} 22. Qa5 {[%emt 0:02:05]} Qxa5 {[%emt 0:08:10]} 23. Rxa5 {[%emt 0:00:36]} Nd6 {[%emt 0:00:10]} 24. Kf1 {[%emt 0:07:24]} Nfe4 {[%emt 0:01:01]} 25. f5 {[%emt 0:00:57]} Nxf5 {[%emt 0:03:51]} 26. Nxf5 {[%emt 0:00:05]} exf5 {[%emt 0:00:03]} 27. Nd4 {[%emt 0:00:25]} Nf6 {[%emt 0:01:19]} 28. Rb5 {[%emt 0:01:13]} Rc7 {[%emt 0:00:45]} 29. Nxf5 {[%emt 0:05:45]} Rxc2 {[%emt 0:02:36]} 30. Rxb7 {[%emt 0:00:31]} Ne4 {[%emt 0:03:05]} 31. f3 {[%emt 0:01:59]} Rf2+ {[%emt 0:01:53]} 32. Kg1 {[%emt 0:02:48]} Rxf3 {[%emt 0:00:06]} 33. Ne7+ {[%emt 0:00:11]} Kh7 {[%emt 0:00:34]} 34. Nxd5 {[%emt 0:00:05]} Rxg3+ {[%emt 0:06:04]} 35. Kh2 {[%emt 0:00:31]} Rd3 {[%emt 0:00:39]} 36. Nf4 {[%emt 0:03:40]} Rf3 {[%emt 0:02:46]} 37. Rxf7 {[%emt 0:04:12]} Ng5 {[%emt 0:04:37]} 38. Kg2 {[%emt 0:00:36]} Rxb3 {[%emt 0:00:35]} 39. Re7 {[%emt 0:00:29]} Rf3 {[%emt 0:04:35]} 40. Ne6 {[%emt 0:01:03]} Ra3 {[%emt 0:02:01]} 1/2-1/2